fUST/lending_fUST_20241028
["ID","MTS","AMOUNT","RATE_DAILY","PERIOD"]
[340916190,1730075440579,-166912.55951951,0.00025,2]
[340916191,1730075440588,-500.0,0.00025073,2]
[340916192,1730075440598,-500.0,0.00025073,2]
[340916193,1730075440607,-262.84365345,0.00025089,2]
[340916194,1730075440617,-96682.55157727,0.0002509,2]
[340916195,1730075440627,-3582.6367775,0.00025731,2]
[340916196,1730075440637,-1000.0,0.00026342,2]
[340916197,1730075440647,-1000.0,0.00026342,2]
[340916198,1730075440656,-1000.0,0.00026442,2]
[340916199,1730075440666,-1000.0,0.00026442,2]
[340916200,1730075440680,-150.0,0.00026816,2]
[340916201,1730075440689,-527.0,0.00026816,2]
[340916202,1730075440700,-2395.0,0.00026816,2]
[340916203,1730075440717,-420.0,0.00027082,2]
[340916204,1730075440727,-500.0,0.00027373,2]
[340916205,1730075440736,-500.0,0.00027373,2]
[340916206,1730075440746,-500.0,0.00027373,2]
[340916207,1730075440758,-168.65502454,0.00027373,2]
[340916208,1730075440769,-500.0,0.00027373,2]
[340916209,1730075440778,-2769.48231444,0.00027387,4]
[340916215,1730075443386,-4477.07481424,0.00027387,4]
[340916217,1730075443398,-10134.30274664,0.00027387,4]
[340916218,1730075443409,-6805.59,0.00027387,4]
[340916222,1730075443497,-929.76,0.00027387,4]
[340916224,1730075446359,-320.0,0.00026816,2]
[340916225,1730075446370,-453.0,0.00026816,2]
[340916230,1730075829777,5000.0,0.00036131,30]
[340917019,1730076045032,322.0,0.00021,3]
[340917531,1730076111249,260.0,0.00021,2]
[340917532,1730076136132,159.822022,0.00013973,2]
[340917533,1730076200059,300.0,0.00021,4]
[340917534,1730076393147,-150.0,0.00024658,2]
[340917535,1730076393170,-159.822022,0.00025156,2]
[340917536,1730076393191,-166.666666,0.00025279,2]
[340917537,1730076393212,-210.5987236,0.00025612,2]
[340917538,1730076393240,-160.048732,0.0002606,2]
[340917539,1730076393262,-160.048732,0.00026157,2]
[340917540,1730076393285,-160.048732,0.00026254,2]
[340917541,1730076393306,-203.865617,0.00026261,2]
[340917542,1730076393326,-205.125513,0.00026261,2]
[340917543,1730076393347,-182.813539,0.00026261,2]
[340917544,1730076393372,-160.048732,0.00026351,2]
[340917545,1730076393395,-160.048732,0.00026448,2]
[340917546,1730076393416,-160.048732,0.00026545,2]
[340917547,1730076393440,-203.865617,0.0002659,2]
[340917548,1730076393461,-205.125513,0.0002659,2]
[340917549,1730076393483,-160.048732,0.00026642,2]
[340917550,1730076393505,-160.048732,0.00026739,2]
[340917551,1730076393527,-300.0,0.00026815,2]
[340917552,1730076393547,-377.0,0.00026816,2]
[340917553,1730076393568,-2158.958,0.00026816,2]
[340917554,1730076393590,-160.048732,0.00026836,2]
[340917555,1730076393611,-2719.1956914,0.00026894,2]
[340917713,1730076638805,-250.30024989,0.00024658,2]
[340917714,1730076638815,-160.048732,0.00026341,2]
[340917715,1730076638825,-160.048732,0.00026616,2]
[340917716,1730076638834,-150.0,0.00026816,2]
[340917717,1730076638844,-150.0,0.00026816,2]
[340917718,1730076638854,-160.048732,0.0002689,2]
[340917719,1730076638863,-203.865617,0.00026918,2]
[340917720,1730076638873,-205.125513,0.00026918,2]
[340917721,1730076638882,-300.0,0.00027,4]
[340917722,1730076638892,-160.048732,0.00027165,2]
[340917723,1730076638901,-203.865617,0.00027246,2]
[340917724,1730076638911,-205.125513,0.00027246,2]
[340917725,1730076638920,-2393.19217088,0.00027287,2]
[340917726,1730076638930,-675.071834,0.00027297,2]
[340917727,1730076638939,-300.0,0.00027372,2]
[340917728,1730076638948,-500.0,0.00027373,2]
[340917729,1730076638958,-500.0,0.00027373,2]
[340917730,1730076638967,-326.21,0.00027377,10]
[340917731,1730076638976,-166.64562921,0.00027387,2]
[340917732,1730076638986,-58529.6337158,0.00027387,4]
[340917733,1730076638995,-98666.824383,0.00027387,4]
[340917734,1730076639005,-183.99055742,0.00027395,2]
[340917735,1730076639014,-10437.0450318,0.00027396,2]
[340917783,1730076640631,-52949.0040816,0.00027396,2]
[340917784,1730076640642,-500.0,0.00027397,30]
[340917785,1730076640651,-500.0,0.00027397,30]
[340917786,1730076640661,-500.0,0.00027397,30]
[340917787,1730076640680,-500.0,0.00027397,30]
[340917788,1730076640691,-500.0,0.00027397,30]
[340917789,1730076640701,-500.0,0.00027397,30]
[340917790,1730076640710,-500.0,0.00027397,30]
[340917791,1730076640719,-500.0,0.00027397,30]
[340917792,1730076640729,-500.0,0.00027397,30]
[340917793,1730076640739,-500.0,0.00027397,30]
[340917794,1730076640748,-500.0,0.00027397,30]
[340917795,1730076640757,-500.0,0.00027397,30]
[340917796,1730076640767,-500.0,0.00027397,30]
[340917797,1730076640777,-500.0,0.00027397,30]
[340917798,1730076640786,-467.15265188,0.00027397,30]
[340917799,1730076640796,-500.0,0.00027397,30]
[340917800,1730076640806,-500.0,0.00027397,30]
[340917801,1730076640815,-500.0,0.00027397,30]
[340917802,1730076640824,-534.89933079,0.00027397,30]
[340917803,1730076640834,-500.0,0.00027397,30]
[340917804,1730076640844,-500.0,0.00027397,30]
[340917805,1730076640854,-565.31281282,0.00027397,30]
[340917806,1730076640864,-234.69235242,0.00027397,30]
[340917807,1730076640875,-374.72485159,0.00027397,30]
[340917808,1730076640884,-500.0,0.00027397,30]
[340917809,1730076640895,-500.0,0.00027397,30]
[340917810,1730076640904,-500.0,0.00027397,30]
[340917811,1730076640913,-500.0,0.00027397,30]
[340917812,1730076640924,-500.0,0.00027397,30]
[340917813,1730076640934,-500.0,0.00027397,30]
[340917814,1730076640944,-500.0,0.00027397,30]
[340917815,1730076640955,-500.0,0.00027397,30]
[340917816,1730076640964,-500.0,0.00027397,30]
[340917817,1730076640974,-500.0,0.00027397,30]
[340917818,1730076640983,-500.0,0.00027397,30]
[340917819,1730076640993,-500.0,0.00027397,30]
[340917820,1730076641003,-500.0,0.00027397,30]
[340917821,1730076641012,-500.0,0.00027397,30]
[340917822,1730076641023,-500.0,0.00027397,30]
[340917823,1730076641032,-500.0,0.00027397,30]
[340917824,1730076641042,-500.0,0.00027397,30]
[340917825,1730076641051,-500.0,0.00027397,30]
[340917826,1730076641061,-500.0,0.00027397,30]
[340917827,1730076641071,-500.0,0.00027397,30]
[340917828,1730076641081,-500.0,0.00027397,30]
[340917829,1730076641090,-500.0,0.00027397,30]
[340917830,1730076641100,-500.0,0.00027397,30]
[340917831,1730076641112,-500.0,0.00027397,30]
[340917832,1730076641122,-500.0,0.00027397,30]
[340917833,1730076641131,-500.0,0.00027397,30]
[340917834,1730076641141,-500.0,0.00027397,30]
[340917835,1730076641151,-500.0,0.00027397,30]
[340917836,1730076641161,-500.0,0.00027397,30]
[340917837,1730076641171,-500.0,0.00027397,30]
[340917838,1730076641181,-500.0,0.00027397,30]
[340917839,1730076641191,-500.0,0.00027397,30]
[340917840,1730076641200,-500.0,0.00027397,30]
[340917841,1730076641210,-500.0,0.00027397,30]
[340917842,1730076641219,-500.0,0.00027397,30]
[340917843,1730076641229,-500.0,0.00027397,30]
[340917844,1730076641239,-500.0,0.00027397,30]
[340917845,1730076641248,-500.0,0.00027397,30]
[340917846,1730076641257,-500.0,0.00027397,30]
[340917847,1730076641267,-500.0,0.00027397,30]
[340917848,1730076641277,-188.0,0.00027397,2]
[340917849,1730076641287,-500.0,0.00027397,30]
[340917850,1730076641300,-500.0,0.00027397,30]
[340917851,1730076641311,-500.0,0.00027397,30]
[340917852,1730076641320,-500.0,0.00027397,20]
[340917853,1730076641330,-500.0,0.00027397,20]
[340917854,1730076641340,-500.0,0.00027397,20]
[340917855,1730076641349,-500.0,0.00027397,20]
[340917856,1730076641363,-500.0,0.00027397,20]
[340917857,1730076641372,-500.0,0.00027397,20]
[340917858,1730076641382,-500.0,0.00027397,20]
[340917859,1730076641392,-500.0,0.00027397,20]
[340917860,1730076641402,-500.0,0.00027397,20]
[340917861,1730076641412,-500.0,0.00027397,20]
[340917862,1730076641422,-500.0,0.00027397,20]
[340917863,1730076641431,-500.0,0.00027397,20]
[340917864,1730076641441,-505.12757724,0.00027397,20]
[340917865,1730076641451,-500.0,0.00027397,30]
[340917866,1730076641463,-500.0,0.00027397,30]
[340917867,1730076641473,-500.0,0.00027397,30]
[340917868,1730076641483,-500.0,0.00027397,30]
[340917869,1730076641492,-500.0,0.00027397,30]
[340917870,1730076641502,-500.0,0.00027397,30]
[340917871,1730076641512,-475.24129899,0.00027397,30]
[340917872,1730076641522,-500.0,0.00027397,30]
[340917873,1730076641532,-217.88956238,0.00027397,7]
[340917874,1730076641542,-500.0,0.00027397,30]
[340917875,1730076641552,-500.0,0.00027397,30]
[340917876,1730076641561,-500.0,0.00027397,30]
[340917877,1730076641571,-153.18794424,0.00027397,30]
[340917878,1730076641581,-500.0,0.00027397,30]
[340917879,1730076641591,-500.0,0.00027397,30]
[340917880,1730076641601,-500.0,0.00027397,30]
[340917881,1730076641612,-500.0,0.00027397,30]
[340917882,1730076641622,-500.0,0.00027397,30]
[340917883,1730076641632,-631.60248421,0.00027397,30]
[340917884,1730076641642,-500.0,0.00027397,30]
[340917885,1730076641651,-500.0,0.00027397,30]
[340917886,1730076641661,-500.0,0.00027397,30]
[340917887,1730076641671,-500.0,0.00027397,30]
[340917888,1730076641680,-500.0,0.00027397,30]
[340917889,1730076641690,-500.0,0.00027397,30]
[340917890,1730076641702,-500.0,0.00027397,30]
[340917891,1730076641712,-500.0,0.00027397,30]
[340917892,1730076641722,-500.0,0.00027397,30]
[340917893,1730076641732,-500.0,0.00027397,30]
[340917894,1730076641743,-500.0,0.00027397,30]
[340917895,1730076641752,-500.0,0.00027397,14]
[340917896,1730076641761,-500.0,0.00027397,30]
[340917897,1730076641771,-500.0,0.00027397,30]
[340917898,1730076641781,-500.0,0.00027397,30]
[340917899,1730076641790,-500.0,0.00027397,30]
[340917900,1730076641800,-500.0,0.00027397,30]
[340917901,1730076641810,-500.0,0.00027397,30]
[340917902,1730076641819,-500.0,0.00027397,30]
[340917903,1730076641830,-500.0,0.00027397,30]
[340917904,1730076641840,-500.0,0.00027397,30]
[340917905,1730076641850,-500.0,0.00027397,30]
[340917906,1730076641865,-500.0,0.00027397,30]
[340917907,1730076641875,-500.0,0.00027397,30]
[340917908,1730076641884,-500.0,0.00027397,30]
[340917909,1730076641894,-500.0,0.00027397,30]
[340917910,1730076641904,-500.0,0.00027397,30]
[340917911,1730076641914,-500.0,0.00027397,30]
[340917912,1730076641923,-500.0,0.00027397,30]
[340917913,1730076641937,-500.0,0.00027397,30]
[340917914,1730076641947,-500.0,0.00027397,30]
[340917915,1730076641958,-500.0,0.00027397,30]
[340917916,1730076641968,-500.0,0.00027397,30]
[340917917,1730076641978,-500.0,0.00027397,30]
[340917918,1730076641988,-500.0,0.00027397,30]
[340917919,1730076641998,-500.0,0.00027397,30]
[340917920,1730076642008,-500.0,0.00027397,30]
[340917921,1730076642017,-106.62303583,0.00027397,30]
[340917933,1730076643591,-500.0,0.00027373,2]
[340917934,1730076643600,-393.37696417,0.00027397,30]
[340917935,1730076643611,-500.0,0.00027397,30]
[340917936,1730076643621,-500.0,0.00027397,30]
[340917937,1730076643630,-500.0,0.00027397,30]
[340917938,1730076643641,-500.0,0.00027397,30]
[340917939,1730076643651,-500.0,0.00027397,30]
[340917940,1730076643662,-500.0,0.00027397,30]
[340917941,1730076643672,-500.0,0.00027397,30]
[340917942,1730076643682,-500.0,0.00027397,20]
[340917943,1730076643693,-500.0,0.00027397,30]
[340917944,1730076643704,-289.72026936,0.00027397,10]
[340917945,1730076643915,-210.27973064,0.00027397,10]
[340917946,1730076643925,-500.0,0.00027397,30]
[340917947,1730076643934,-254.55087936,0.00027397,30]
[340917998,1730076795058,159.881349,0.00013973,2]
[340918003,1730077143077,3656.22916843,0.00021,2]
[340918004,1730077408509,159.881349,0.00013973,2]
[340918078,1730077837885,-159.881349,0.00023435,2]
[340918079,1730077837894,-166.666666,0.00025148,2]
[340918080,1730077837904,-157.633374,0.00025678,2]
[340918081,1730077837914,-160.048732,0.0002575,2]
[340918082,1730077837923,-5307.8161419,0.00025837,2]
[340918083,1730077837932,-352.69893305,0.00026716,2]
[340918084,1730077837942,-250.0,0.00026816,2]
[340918085,1730077837952,-300.0,0.00026848,2]
[340918086,1730077837961,-160.0,0.00027,2]
[340918087,1730077837970,-160.048732,0.00027092,2]
[340918088,1730077837981,-2873.40545961,0.00027277,2]
[340918089,1730077837991,-17975.09300358,0.000273,2]
[340918090,1730077838001,-2850.0,0.000273,2]
[340918091,1730077838012,-500.0,0.00027373,2]
[340918092,1730077838026,-168.65502454,0.00027373,2]
[340918093,1730077838038,-500.0,0.00027373,2]
[340918094,1730077838049,-500.0,0.00027373,2]
[340918095,1730077838061,-500.0,0.00027373,2]
[340918096,1730077838071,-500.0,0.00027373,2]
[340918097,1730077838082,-16458.0525829,0.00027387,4]
[340918098,1730077838103,-1555.01255968,0.00027387,4]
[340918104,1730077839880,-5209.52422439,0.00027387,4]
[340918118,1730077855328,191.09,0.000136,2]
[340918119,1730077897909,160.000001,0.00013973,2]
[340918120,1730078454329,159.881349,0.00013973,2]
[340918121,1730078664487,10000.0,0.00036127,30]
[340918122,1730078679695,6560.49395733,0.00036127,30]
[340918130,1730078978608,160.000001,0.00013973,2]
[340918132,1730079027672,165.9514264,0.00021,2]
[340918143,1730079032000,-486.54876236,0.00024932,2]
[340918156,1730079040255,-136.45123764,0.00024932,2]
[340918157,1730079040265,-533.66876236,0.00025,2]
[340918158,1730079040277,-89.33123764,0.00025,2]
[340918159,1730079040287,-156.0,0.00025,2]
[340918160,1730079040296,-159.881349,0.00025156,2]
[340918161,1730079040306,-166.666666,0.00025194,2]
[340918162,1730079040315,-159.66107536,0.0002561,2]
[340918163,1730079040327,-2763.67754794,0.0002561,2]
[340918164,1730079040336,-623.0,0.0002589,2]
[340918165,1730079040346,-156.0,0.0002589,2]
[340918166,1730079040355,-300.0,0.00026848,2]
[340918167,1730079040364,-160.0,0.00027,2]
[340918168,1730079040374,-623.0,0.00027185,2]
[340918169,1730079040383,-156.0,0.00027185,2]
[340918170,1730079040393,-2094.04314952,0.00027287,2]
[340918171,1730079040402,-150.0,0.000273,2]
[340918172,1730079040413,-183.686,0.00027333,2]
[340918173,1730079040422,-150.618,0.00027333,2]
[340918174,1730079040432,-529.424,0.00027333,2]
[340918175,1730079040441,-2405.542,0.00027333,2]
[340918176,1730079040451,-500.0,0.00027373,2]
[340918177,1730079040461,-500.0,0.00027373,2]
[340918178,1730079040471,-200.01,0.00027377,10]
[340918179,1730079040481,-190.94113529,0.00027387,2]
[340918180,1730079040491,-57019.3061151,0.00027387,4]
[340918181,1730079040500,-63446.47885348,0.00027387,4]
[340918193,1730079043115,-1855.12953297,0.00027387,4]
[340918200,1730079185588,177.13225758,0.00036127,90]
[340918201,1730079455052,316.48,0.00021,2]
[340918202,1730079548945,167.105146,0.00013973,2]
[340918204,1730080086080,5150.0,0.00021,2]
[340918208,1730080121484,160.000001,0.00013973,2]
[340918220,1730080232251,-467.0,0.00024932,2]
[340918222,1730080232263,-234.38796988,0.00025,2]
[340918223,1730080232277,-265.61203012,0.00025,2]
[340918224,1730080232288,-405.57418972,0.00025,2]
[340918248,1730080240361,-61.42581028,0.00025,2]
[340918250,1730080240372,-167.105146,0.00025156,2]
[340918251,1730080240383,-3814.202161,0.00025728,2]
[340918252,1730080240396,-469.82269158,0.000258,2]
[340918253,1730080240406,-467.0,0.0002589,2]
[340918254,1730080240417,-300.0,0.00026848,2]
[340918255,1730080240427,-156.0,0.00027,2]
[340918256,1730080240439,-160.0,0.00027,2]
[340918257,1730080240450,-474.0,0.00027185,2]
[340918258,1730080240461,-2102.47270768,0.00027287,2]
[340918259,1730080240473,-189.36978812,0.000273,14]
[340918260,1730080240485,-150.0,0.000273,2]
[340918261,1730080240496,-500.0,0.00027373,2]
[340918262,1730080240508,-500.0,0.00027373,2]
[340918263,1730080240521,-569.9194441,0.00027376,2]
[340918264,1730080240533,-190.94113529,0.00027387,2]
[340918266,1730080240543,-69003.8632669,0.00027387,4]
[340918269,1730080240555,-50111.92710244,0.00027387,4]
[340918313,1730080637874,164.736764,0.00013973,2]
[340918314,1730081136775,160.000001,0.00013973,2]
[340918316,1730081358150,-168.70776,0.00021918,2]
[340918317,1730081358176,-300.0,0.00021999,2]
[340918318,1730081358204,-300.0,0.00021999,2]
[340918319,1730081358230,-197.74459677,0.00022,2]
[340918320,1730081358255,-8488.88762123,0.00022,3]
[340918350,1730081443605,-300.0,0.00021999,2]
[340918351,1730081443615,-300.0,0.00021999,2]
[340918352,1730081443627,-596.77160293,0.00022,3]
[340918353,1730081443639,-25914.34077584,0.00022,3]
[340918354,1730081443650,-164.736764,0.00022759,2]
[340918355,1730081443660,-420.0,0.00023906,2]
[340918356,1730081443670,-197.74459677,0.00024089,2]
[340918358,1730081443679,-24880.0,0.00024089,2]
[340918359,1730081443689,-230.0,0.00024199,2]
[340918360,1730081443701,-165.903595,0.0002446,2]
[340918361,1730081443711,-168.70776,0.00024482,2]
[340918362,1730081443721,-165.903595,0.00024588,2]
[340918363,1730081443731,-1207.80761869,0.00024657,2]
[340918364,1730081443740,-165.903595,0.00024715,2]
[340918365,1730081443750,-165.903595,0.00024843,2]
[340918366,1730081443759,-165.903595,0.0002497,2]
[340918367,1730081443771,-159.2008753,0.00025049,2]
[340918368,1730081443781,-165.903595,0.00025098,2]
[340918369,1730081443791,-165.903595,0.00025225,2]
[340918370,1730081443803,-165.903595,0.00025352,2]
[340918371,1730081443812,-179.29097362,0.00025459,2]
[340918372,1730081443822,-438.887533,0.00025477,2]
[340918373,1730081443833,-165.903595,0.0002548,2]
[340918374,1730081443842,-165.903595,0.00025607,2]
[340918375,1730081443855,-165.903595,0.00025735,2]
[340918376,1730081443866,-587.0,0.00025977,2]
[340918377,1730081443876,-438.887533,0.00026162,2]
[340918378,1730081443886,-438.887533,0.00026847,2]
[340918379,1730081443896,-156.0,0.00027,2]
[340918380,1730081443905,-233.0,0.00027,2]
[340918381,1730081443915,-160.0,0.00027,2]
[340918382,1730081443926,-3971.6589533,0.00027075,2]
[340918383,1730081443937,-3550.54473942,0.00027075,2]
[340918384,1730081443947,-150.0,0.000273,2]
[340918385,1730081443960,-183.686,0.00027314,2]
[340918386,1730081443972,-11500.6438778,0.00027367,4]
[340918387,1730081443983,-200.01,0.00027367,10]
[340918388,1730081443993,-500.0,0.00027373,2]
[340918389,1730081444003,-500.0,0.00027373,2]
[340918390,1730081444014,-34501.9316335,0.00027377,4]
[340918391,1730081444025,-1153.008654,0.00027377,7]
[340918392,1730081444035,-1153.008654,0.00027377,7]
[340918393,1730081444044,-151.0,0.00027377,7]
[340918394,1730081444054,-485.042818,0.00027377,7]
[340918395,1730081444064,-485.042818,0.00027377,7]
[340918396,1730081444073,-261.294272,0.00027377,7]
[340918397,1730081444083,-151.0,0.00027377,7]
[340918398,1730081444092,-261.294272,0.00027377,7]
[340918399,1730081444103,-151.0,0.00027377,7]
[340918400,1730081444112,-286.758822,0.00027377,7]
[340918401,1730081444121,-286.758822,0.00027377,7]
[340918402,1730081444132,-151.0,0.00027377,7]
[340918403,1730081444144,-151.0,0.00027377,7]
[340918404,1730081444153,-151.0,0.00027377,7]
[340918405,1730081444162,-151.0,0.00027377,7]
[340918406,1730081444172,-506.960008,0.00027377,7]
[340918407,1730081444182,-506.960008,0.00027377,7]
[340918408,1730081444193,-151.0,0.00027377,7]
[340918409,1730081444203,-151.0,0.00027377,7]
[340918410,1730081444213,-506.960008,0.00027377,7]
[340918411,1730081444224,-506.960008,0.00027377,7]
[340918412,1730081444233,-151.0,0.00027377,7]
[340918413,1730081444242,-151.0,0.00027377,7]
[340918414,1730081444251,-151.0,0.00027377,7]
[340918415,1730081444260,-151.0,0.00027377,7]
[340918416,1730081444270,-199.864589,0.00027377,7]
[340918417,1730081444279,-199.864589,0.00027377,7]
[340918418,1730081444288,-151.0,0.00027377,7]
[340918419,1730081444298,-151.0,0.00027377,7]
[340918420,1730081444307,-199.864589,0.00027377,7]
[340918421,1730081444317,-199.864589,0.00027377,7]
[340918422,1730081444328,-151.0,0.00027377,7]
[340918423,1730081444337,-151.0,0.00027377,7]
[340918424,1730081444347,-151.0,0.00027377,7]
[340918425,1730081444357,-151.0,0.00027377,7]
[340918426,1730081444366,-269.060486,0.00027377,7]
[340918427,1730081444376,-269.060486,0.00027377,7]
[340918428,1730081444385,-269.060486,0.00027377,7]
[340918429,1730081444395,-269.060486,0.00027377,7]
[340918430,1730081444404,-177.922033,0.00027377,7]
[340918431,1730081444413,-177.922033,0.00027377,7]
[340918432,1730081444422,-151.0,0.00027377,7]
[340918433,1730081444431,-1211.007218,0.00027377,7]
[340918434,1730081444441,-1211.007218,0.00027377,7]
[340918435,1730081444450,-151.0,0.00027377,7]
[340918436,1730081444460,-1211.007218,0.00027377,7]
[340918437,1730081444470,-1211.007218,0.00027377,7]
[340918438,1730081444480,-151.0,0.00027377,7]
[340918439,1730081444490,-151.0,0.00027377,7]
[340918440,1730081444500,-245.306458,0.00027377,7]
[340918441,1730081444509,-245.306458,0.00027377,7]
[340918442,1730081444518,-1114.332377,0.00027377,7]
[340918443,1730081444527,-1114.332377,0.00027377,7]
[340918444,1730081444536,-1114.332377,0.00027377,7]
[340918445,1730081444545,-1114.332377,0.00027377,7]
[340918446,1730081444554,-520.187616,0.00027377,7]
[340918447,1730081444563,-520.187616,0.00027377,7]
[340918448,1730081444572,-520.187616,0.00027377,7]
[340918449,1730081444582,-520.187616,0.00027377,7]
[340918450,1730081444591,-520.187616,0.00027377,7]
[340918451,1730081444602,-520.187616,0.00027377,7]
[340918452,1730081444612,-151.0,0.00027377,7]
[340918453,1730081444621,-151.0,0.00027377,7]
[340918454,1730081444631,-151.0,0.00027377,7]
[340918455,1730081444642,-151.0,0.00027377,7]
[340918456,1730081444651,-151.0,0.00027377,7]
[340918457,1730081444661,-151.0,0.00027377,7]
[340918458,1730081444670,-170.09999,0.00027377,7]
[340918459,1730081444680,-11500.6438778,0.00027377,4]
[340918460,1730081444690,-225.0,0.0002738,17]
[340918461,1730081444700,-289.62011553,0.00027386,2]
[340918462,1730081444710,-6725.88145866,0.00027386,2]
[340918463,1730081444720,-177.922033,0.00027386,7]
[340918464,1730081444729,-177.922033,0.00027386,7]
[340918465,1730081444739,-202.851035,0.00027386,7]
[340918466,1730081444749,-151.0,0.00027386,7]
[340918467,1730081444760,-245.306458,0.00027386,7]
[340918468,1730081444769,-245.306458,0.00027386,7]
[340918469,1730081444779,-23904.59071702,0.00027387,4]
[340918471,1730081732836,163.231576,0.00013973,2]
[340918472,1730081733050,163.231576,0.00020807,2]
[340918474,1730082219664,160.000001,0.00013973,2]
[340918475,1730082219713,5213.88207825,0.00036127,30]
[340918478,1730082392109,-150.04800644,0.00024658,2]
[340918479,1730082392131,-23.62150336,0.0002511,2]
[340918480,1730082521415,158.82858713,0.0003613,30]
[340918481,1730082521992,1331.05772631,0.00022,60]
[340918482,1730082527679,7151.11509696,0.0003613,30]
[340918544,1730082638779,-6107.70243132,0.00022,30]
[340918546,1730082638790,-210.5987236,0.00025469,2]
[340918548,1730082638801,-300.0,0.00025566,2]
[340918551,1730082638813,-7410.1107528,0.00025567,2]
[340918553,1730082638823,-232.50527687,0.00025678,2]
[340918555,1730082638834,-160.048732,0.00025805,2]
[340918557,1730082638844,-160.048732,0.00025973,2]
[340918559,1730082638853,-160.048732,0.00026141,2]
[340918561,1730082638864,-197.711006,0.00026261,2]
[340918563,1730082638873,-206.740455,0.00026261,2]
[340918565,1730082638882,-160.048732,0.00026309,2]
[340918567,1730082638891,-237.221,0.0002633,2]
[340918569,1730082638901,-160.048732,0.00026477,2]
[340918571,1730082638910,-160.048732,0.00026645,2]
[340918573,1730082638919,-160.048732,0.00026813,2]
[340918575,1730082638929,-2719.1956914,0.00026882,2]
[340918577,1730082638939,-197.711006,0.00026918,2]
[340918579,1730082638949,-160.048732,0.00026981,2]
[340918581,1730082638959,-204.0,0.00027,2]
[340918583,1730082638968,-157.0,0.00027,2]
[340918585,1730082638978,-61564.75889442,0.00027,2]
[340918780,1730082641056,-3470.08778084,0.00027,2]
[340918781,1730082641069,-59871.32717801,0.00027,2]
[340918782,1730082641082,-5000.022972,0.00027,2]
[340918787,1730082643827,-19.2966122,0.00027,2]
[340918789,1730082692461,-12590.0,0.00027,2]
[340918790,1730082905019,158.74684,0.00013973,2]
[340918791,1730082905226,158.74684,0.00020447,2]
[340918814,1730083836224,1500.0,0.00036128,30]
[340918862,1730084024730,162.872156,0.00013973,2]
[340918863,1730084024978,162.872156,0.00020447,2]
[340918864,1730084558678,11022.0,0.0002,2]
[340918865,1730084647071,6294.77022081,0.00019886,2]
[340918866,1730084647382,6294.77022081,0.00020198,2]
[340918913,1730085038345,-170.502436,0.00021856,2]
[340918914,1730085038356,-170.502436,0.00021916,2]
[340918915,1730085038367,-170.502436,0.00021976,2]
[340918916,1730085038377,-72.72762598,0.00022035,2]
[340918917,1730085038390,-97.77481002,0.00022035,2]
[340918918,1730085038402,-227.478254,0.00022054,2]
[340918919,1730085038413,-300.0,0.00022078,2]
[340918920,1730085038425,-300.0,0.00022078,2]
[340918921,1730085038435,-7968.46121685,0.00022079,2]
[340918965,1730085043294,-16931.53878315,0.00022079,2]
[340918967,1730085043306,-170.502436,0.00022095,2]
[340918968,1730085043316,-170.502436,0.00022155,2]
[340918970,1730085043326,-170.502436,0.00022215,2]
[340918971,1730085043337,-170.502436,0.00022275,2]